[Event "*** Titled Tuesday Blitz"]
[Site "Chess.com"]
[Date "2020.05.05"]
[Round "1"]
[White "albano87"]
[Black "OK97"]
[Result "1-0"]
[WhiteElo "2394"]
[BlackElo "2711"]
[TimeControl "180+1"]
[EndTime "10:08:22 PDT"]
[Termination "albano87 won by resignation"]

1. Nf3 {[%clk 0:02:55.1]} 1... d5 {[%clk 0:02:59.1]} 2. g3 {[%clk 0:02:51.8]}
2... g6 {[%clk 0:02:59.2]} 3. Bg2 {[%clk 0:02:51.4]} 3... Bg7 {[%clk 0:02:59.8]}
4. O-O {[%clk 0:02:51.1]} 4... e5 {[%clk 0:02:59.9]} 5. d3 {[%clk 0:02:46.6]}
5... Ne7 {[%clk 0:02:59.8]} 6. e4 {[%clk 0:02:43.1]} 6... Nbc6 {[%clk
0:02:58.1]} 7. a4 {[%clk 0:02:37.2]} 7... O-O {[%clk 0:02:52.7]} 8. exd5 {[%clk
0:02:23.5]} 8... Nxd5 {[%clk 0:02:53.6]} 9. Re1 {[%clk 0:02:22.6]} 9... Re8
{[%clk 0:02:52.2]} 10. a5 {[%clk 0:02:10.3]} 10... a6 {[%clk 0:02:47.2]} 11. Bd2
{[%clk 0:02:07.1]} 11... Bf5 {[%clk 0:02:37.4]} 12. Nc3 {[%clk 0:02:01.1]} 12...
Nxc3 {[%clk 0:02:19.7]} 13. Bxc3 {[%clk 0:02:00.7]} 13... Qd7 {[%clk 0:02:15.3]}
14. Ng5 {[%clk 0:01:50.4]} 14... Rab8 {[%clk 0:02:04.4]} 15. Ne4 {[%clk
0:01:45]} 15... Bh3 {[%clk 0:01:46.1]} 16. Nc5 {[%clk 0:01:35.3]} 16... Qc8
{[%clk 0:01:46.4]} 17. Bxc6 {[%clk 0:01:16.5]} 17... bxc6 {[%clk 0:01:45.8]} 18.
Qf3 {[%clk 0:01:16.9]} 18... Bd7 {[%clk 0:01:06.9]} 19. b4 {[%clk 0:01:10.4]}
19... f6 {[%clk 0:01:01.4]} 20. d4 {[%clk 0:00:52.1]} 20... Bf5 {[%clk
0:00:28.6]} 21. dxe5 {[%clk 0:00:42.2]} 21... fxe5 {[%clk 0:00:29.5]} 22. Qxc6
{[%clk 0:00:38.2]} 22... Ra8 {[%clk 0:00:27.4]} 23. Bxe5 {[%clk 0:00:26.2]}
23... Bxe5 {[%clk 0:00:12.2]} 24. Qd5+ {[%clk 0:00:25.4]} 24... Kg7 {[%clk
0:00:10.6]} 25. Rxe5 {[%clk 0:00:24.4]} 25... Rd8 {[%clk 0:00:10]} 26. Re7+
{[%clk 0:00:21.4]} 26... Kh6 {[%clk 0:00:10.5]} 27. Qf7 {[%clk 0:00:16.7]} 27...
Rh8 {[%clk 0:00:11]} 28. h4 {[%clk 0:00:09.6]} 28... Qf8 {[%clk 0:00:06.5]} 29.
Qxf8+ {[%clk 0:00:08.7]} 29... Rhxf8 {[%clk 0:00:07.4]} 30. Rxc7 {[%clk
0:00:08.5]} 30... Bxc2 {[%clk 0:00:06.5]} 31. Re1 {[%clk 0:00:07.7]} 31... Bf5
{[%clk 0:00:05.6]} 32. Ree7 {[%clk 0:00:07.5]} 32... Rh8 {[%clk 0:00:06.5]} 33.
Ne4 {[%clk 0:00:06.4]} 33... Raf8 {[%clk 0:00:03.3]} 34. Ng5 {[%clk 0:00:05.8]}
34... Kh5 {[%clk 0:00:03.9]} 35. Rxh7+ {[%clk 0:00:05.1]} 35... Rxh7 {[%clk
0:00:04.5]} 36. Rxh7+ {[%clk 0:00:04.6]} 36... Kg4 {[%clk 0:00:05.1]} 37. Kg2
{[%clk 0:00:03.9]} 37... Bc8 {[%clk 0:00:03.6]} 38. f3+ {[%clk 0:00:03.9]} 38...
Kf5 {[%clk 0:00:03.5]} 39. Rf7+ {[%clk 0:00:04.4]} 39... Rxf7 {[%clk 0:00:03.7]}
40. Nxf7 {[%clk 0:00:05.3]} 40... Kf6 {[%clk 0:00:04.6]} 41. Nd6 {[%clk
0:00:05.1]} 41... Bd7 {[%clk 0:00:05]} 42. Ne4+ {[%clk 0:00:03.5]} 42... Ke5
{[%clk 0:00:05.4]} 43. Nc5 {[%clk 0:00:03.9]} 43... Bb5 {[%clk 0:00:05.9]} 44.
g4 {[%clk 0:00:03.5]} 44... Kf4 {[%clk 0:00:06.5]} 45. Ne6+ {[%clk 0:00:02.6]}
45... Ke3 {[%clk 0:00:06.1]} 46. Nc7 {[%clk 0:00:03.1]} 46... Bc6 {[%clk
0:00:06.1]} 47. Kg3 {[%clk 0:00:04]} 47... Bxf3 {[%clk 0:00:06.3]} 48. Nxa6
{[%clk 0:00:04.2]} 48... Be2 {[%clk 0:00:05.8]} 49. Nc7 {[%clk 0:00:04.8]} 49...
Kd4 {[%clk 0:00:05.5]} 50. b5 {[%clk 0:00:05.5]} 50... Kc5 {[%clk 0:00:05.5]}
51. b6 {[%clk 0:00:05.7]} 51... Kc6 {[%clk 0:00:05.8]} 52. Kf4 {[%clk
0:00:05.9]} 52... Kb7 {[%clk 0:00:05.4]} 53. Kg5 {[%clk 0:00:06.5]} 53... Bd1
{[%clk 0:00:05.1]} 54. h5 {[%clk 0:00:07.4]} 54... gxh5 {[%clk 0:00:05.1]} 55.
gxh5 {[%clk 0:00:07.2]} 55... Kc6 {[%clk 0:00:04.2]} 56. h6 {[%clk 0:00:08.1]}
56... Bc2 {[%clk 0:00:04.7]} 57. Kf6 {[%clk 0:00:08.9]} 57... Kb7 {[%clk
0:00:02.3]} 58. Kg7 {[%clk 0:00:09.8]} 1-0

[Event "*** Titled Tuesday Blitz"]
[Site "Chess.com"]
[Date "2020.05.05"]
[Round "1"]
[White "chessdjw"]
[Black "leoduarte"]
[Result "1-0"]
[WhiteElo "2652"]
[BlackElo "2327"]
[TimeControl "180+1"]
[EndTime "10:08:22 PDT"]
[Termination "chessdjw won by checkmate"]

1. e4 {[%clk 0:03:00.9]} 1... c5 {[%clk 0:02:59.1]} 2. Nf3 {[%clk 0:03:01.1]}
2... e6 {[%clk 0:02:52.9]} 3. d4 {[%clk 0:03:00.4]} 3... cxd4 {[%clk 0:02:52]}
4. Nxd4 {[%clk 0:03:01.3]} 4... Nc6 {[%clk 0:02:52.6]} 5. Nc3 {[%clk 0:02:58.3]}
5... Qc7 {[%clk 0:02:51.3]} 6. g3 {[%clk 0:02:54.2]} 6... Nxd4 {[%clk
0:02:47.1]} 7. Qxd4 {[%clk 0:02:53.5]} 7... d6 {[%clk 0:02:47.4]} 8. Bg2 {[%clk
0:02:50.4]} 8... Bd7 {[%clk 0:02:47.3]} 9. O-O {[%clk 0:02:46.1]} 9... Nf6
{[%clk 0:02:47.3]} 10. Re1 {[%clk 0:02:39.4]} 10... Be7 {[%clk 0:02:43.4]} 11.
a4 {[%clk 0:02:35.3]} 11... a6 {[%clk 0:02:29.4]} 12. h3 {[%clk 0:02:35]} 12...
Rc8 {[%clk 0:02:28]} 13. Be3 {[%clk 0:02:33.8]} 13... O-O {[%clk 0:01:59.5]} 14.
a5 {[%clk 0:02:33.8]} 14... Bc6 {[%clk 0:01:59.5]} 15. Qd2 {[%clk 0:02:23.3]}
15... Nd7 {[%clk 0:01:56.8]} 16. Bd4 {[%clk 0:02:12.5]} 16... Ne5 {[%clk
0:01:40.5]} 17. b3 {[%clk 0:02:05.8]} 17... Rfd8 {[%clk 0:01:30.6]} 18. f4
{[%clk 0:02:04.4]} 18... Ng6 {[%clk 0:01:29.9]} 19. Kh2 {[%clk 0:01:58.6]} 19...
Re8 {[%clk 0:01:26.5]} 20. h4 {[%clk 0:01:48.3]} 20... e5 {[%clk 0:01:21.6]} 21.
Bb6 {[%clk 0:01:47.6]} 21... Qb8 {[%clk 0:01:19.7]} 22. f5 {[%clk 0:01:45.8]}
22... Nf8 {[%clk 0:01:18.7]} 23. Re2 {[%clk 0:01:39.3]} 23... Nd7 {[%clk
0:01:18]} 24. Be3 {[%clk 0:01:37.8]} 24... Qc7 {[%clk 0:01:07.2]} 25. Kh3 {[%clk
0:01:21.3]} 25... h5 {[%clk 0:00:43.5]} 26. Bf3 {[%clk 0:01:19.8]} 26... Nf6
{[%clk 0:00:43.6]} 27. Bg5 {[%clk 0:01:20.4]} 27... Bb5 {[%clk 0:00:33.1]} 28.
Nxb5 {[%clk 0:01:14.5]} 28... axb5 {[%clk 0:00:33.3]} 29. Bxf6 {[%clk
0:00:57.5]} 29... Bxf6 {[%clk 0:00:33.3]} 30. Bxh5 {[%clk 0:00:58.1]} 30... Qc3
{[%clk 0:00:32.2]} 31. Qxc3 {[%clk 0:00:44.3]} 31... Rxc3 {[%clk 0:00:31.1]} 32.
Rd1 {[%clk 0:00:44.8]} 32... Be7 {[%clk 0:00:28.8]} 33. Rd5 {[%clk 0:00:43.7]}
33... Rc5 {[%clk 0:00:22.5]} 34. Red2 {[%clk 0:00:34.3]} 34... Rec8 {[%clk
0:00:22.6]} 35. Be2 {[%clk 0:00:34.7]} 35... Rxc2 {[%clk 0:00:20.3]} 36. Bxb5
{[%clk 0:00:31.8]} 36... Rxd2 {[%clk 0:00:18.5]} 37. Rxd2 {[%clk 0:00:32.7]}
37... Rc5 {[%clk 0:00:19]} 38. Bc4 {[%clk 0:00:20.3]} 38... Rxa5 {[%clk
0:00:17.8]} 39. Bd5 {[%clk 0:00:20.8]} 39... b6 {[%clk 0:00:16.6]} 40. g4 {[%clk
0:00:14.8]} 40... Rc5 {[%clk 0:00:13.3]} 41. g5 {[%clk 0:00:15.3]} 41... Kf8
{[%clk 0:00:11.7]} 42. Kg4 {[%clk 0:00:15]} 42... g6 {[%clk 0:00:10.9]} 43. f6
{[%clk 0:00:14.8]} 43... Bd8 {[%clk 0:00:10.4]} 44. h5 {[%clk 0:00:14.1]} 44...
gxh5+ {[%clk 0:00:10]} 45. Kxh5 {[%clk 0:00:14.3]} 45... Rc1 {[%clk 0:00:10.5]}
46. Rh2 {[%clk 0:00:14.6]} 46... Rg1 {[%clk 0:00:09.9]} 47. Kh6 {[%clk
0:00:14.4]} 47... Rg3 {[%clk 0:00:09.3]} 48. Rh5 {[%clk 0:00:12.1]} 48... Rg1
{[%clk 0:00:09.2]} 49. Kh7 {[%clk 0:00:12.4]} 49... Rg2 {[%clk 0:00:08.7]} 50.
Kh8 {[%clk 0:00:11.9]} 50... Rg1 {[%clk 0:00:08.2]} 51. Kh7 {[%clk 0:00:11]}
51... Rg2 {[%clk 0:00:08]} 52. Kh6 {[%clk 0:00:11.5]} 52... Rg1 {[%clk
0:00:08.4]} 53. Bc4 {[%clk 0:00:11.1]} 53... Rg2 {[%clk 0:00:08.4]} 54. Rh1
{[%clk 0:00:09.9]} 54... Rg3 {[%clk 0:00:08.4]} 55. Kh5 {[%clk 0:00:10.4]} 55...
Rc3 {[%clk 0:00:08.1]} 56. Kg4 {[%clk 0:00:09.9]} 56... b5 {[%clk 0:00:05.3]}
57. Rh8# {[%clk 0:00:09.3]} 1-0

[Event "*** Titled Tuesday Blitz"]
[Site "Chess.com"]
[Date "2020.05.05"]
[Round "1"]
[White "Maybe00"]
[Black "jmduque"]
[Result "1-0"]
[WhiteElo "2803"]
[BlackElo "2417"]
[TimeControl "180+1"]
[EndTime "10:08:24 PDT"]
[Termination "Maybe00 won on time"]

1. d4 {[%clk 0:03:00.9]} 1... Nf6 {[%clk 0:02:52.9]} 2. c4 {[%clk 0:03:00.5]}
2... b6 {[%clk 0:02:51.3]} 3. Nc3 {[%clk 0:02:59.3]} 3... Bb7 {[%clk 0:02:51.1]}
4. Qc2 {[%clk 0:02:58.7]} 4... d5 {[%clk 0:02:50.8]} 5. cxd5 {[%clk 0:02:58.6]}
5... Nxd5 {[%clk 0:02:51.7]} 6. Bd2 {[%clk 0:02:58.2]} 6... e6 {[%clk
0:02:44.1]} 7. Nf3 {[%clk 0:02:56.2]} 7... Be7 {[%clk 0:02:43.4]} 8. e4 {[%clk
0:02:55.7]} 8... Nxc3 {[%clk 0:02:43.1]} 9. Bxc3 {[%clk 0:02:56.6]} 9... O-O
{[%clk 0:02:42.6]} 10. Rd1 {[%clk 0:02:56]} 10... Nd7 {[%clk 0:02:41.8]} 11. Bc4
{[%clk 0:02:53.6]} 11... Qc8 {[%clk 0:02:40.9]} 12. O-O {[%clk 0:02:52.4]} 12...
c5 {[%clk 0:02:40.8]} 13. d5 {[%clk 0:02:52.4]} 13... exd5 {[%clk 0:02:40.3]}
14. exd5 {[%clk 0:02:47.9]} 14... Bf6 {[%clk 0:02:32.5]} 15. Rfe1 {[%clk
0:02:36.9]} 15... h6 {[%clk 0:02:27.3]} 16. Bb5 {[%clk 0:02:28.3]} 16... Bxc3
{[%clk 0:02:25.2]} 17. bxc3 {[%clk 0:02:29.2]} 17... a6 {[%clk 0:02:22.5]} 18.
Bxd7 {[%clk 0:02:16.2]} 18... Qxd7 {[%clk 0:02:23.4]} 19. Ne5 {[%clk 0:02:11.4]}
19... Qd6 {[%clk 0:02:19.5]} 20. Nc4 {[%clk 0:02:10.4]} 20... Qf6 {[%clk
0:02:19.7]} 21. d6 {[%clk 0:01:52.6]} 21... Rad8 {[%clk 0:02:07.1]} 22. Qd3
{[%clk 0:01:45.2]} 22... b5 {[%clk 0:01:57.1]} 23. Na5 {[%clk 0:01:44]} 23...
Bc8 {[%clk 0:01:52.9]} 24. Nc6 {[%clk 0:01:41.5]} 24... Rd7 {[%clk 0:01:51.1]}
25. Ne7+ {[%clk 0:01:38.9]} 25... Kh8 {[%clk 0:01:51.1]} 26. Qh3 {[%clk
0:01:24.7]} 26... Rdd8 {[%clk 0:01:03.8]} 27. Nxc8 {[%clk 0:01:23.8]} 27... Rxc8
{[%clk 0:01:04.1]} 28. d7 {[%clk 0:01:21.5]} 28... Rcd8 {[%clk 0:01:04.4]} 29.
a3 {[%clk 0:01:16.4]} 29... Kg8 {[%clk 0:01:02.4]} 30. Rd5 {[%clk 0:01:14]}
30... Qc6 {[%clk 0:00:54.7]} 31. Red1 {[%clk 0:01:11.8]} 31... a5 {[%clk
0:00:55]} 32. Qg4 {[%clk 0:01:06]} 32... b4 {[%clk 0:00:54.4]} 33. cxb4 {[%clk
0:01:02.8]} 33... cxb4 {[%clk 0:00:53.1]} 34. axb4 {[%clk 0:01:03]} 34... f5
{[%clk 0:00:51]} 35. Qd4 {[%clk 0:00:56.1]} 35... axb4 {[%clk 0:00:46.4]} 36.
Qxb4 {[%clk 0:00:56]} 36... Qe6 {[%clk 0:00:45.5]} 37. Rd6 {[%clk 0:00:50.4]}
37... Qe7 {[%clk 0:00:44.8]} 38. h3 {[%clk 0:00:47.7]} 38... Kh8 {[%clk
0:00:44.1]} 39. Qc4 {[%clk 0:00:46.2]} 39... f4 {[%clk 0:00:41.6]} 40. Qe6
{[%clk 0:00:29.7]} 40... Qg5 {[%clk 0:00:38.1]} 41. Qg4 {[%clk 0:00:27.6]} 41...
Qc5 {[%clk 0:00:30]} 42. R6d5 {[%clk 0:00:26.3]} 42... Qe7 {[%clk 0:00:28.4]}
43. Qf3 {[%clk 0:00:25.3]} 43... Rf7 {[%clk 0:00:27.7]} 44. Kh2 {[%clk
0:00:25.8]} 44... Qe6 {[%clk 0:00:27]} 45. Qg4 {[%clk 0:00:25.4]} 45... Qc6
{[%clk 0:00:23]} 46. f3 {[%clk 0:00:24.6]} 46... Kg8 {[%clk 0:00:17.7]} 47. R1d2
{[%clk 0:00:24.9]} 47... Qc7 {[%clk 0:00:17.5]} 48. Qe6 {[%clk 0:00:24.3]} 48...
Qc3 {[%clk 0:00:14]} 49. R2d4 {[%clk 0:00:18.7]} 49... Qe3 {[%clk 0:00:11.7]}
50. Re4 {[%clk 0:00:17.6]} 50... Qa7 {[%clk 0:00:10.8]} 51. Qe8+ {[%clk
0:00:14.8]} 51... Rf8 {[%clk 0:00:11.1]} 52. Qxd8 {[%clk 0:00:13.5]} 52... Rxd8
{[%clk 0:00:10.8]} 53. Re8+ {[%clk 0:00:14.1]} 53... Kf7 {[%clk 0:00:10.8]} 54.
Rxd8 {[%clk 0:00:14.6]} 54... Qf2 {[%clk 0:00:10.9]} 55. Rf8+ {[%clk 0:00:12.5]}
55... Kg6 {[%clk 0:00:11]} 56. Re8 {[%clk 0:00:10.9]} 56... Qg3+ {[%clk
0:00:10.1]} 57. Kg1 {[%clk 0:00:11.3]} 57... Qe1+ {[%clk 0:00:09.2]} 58. Rxe1
{[%clk 0:00:10.7]} 1-0

[Event "*** Titled Tuesday Blitz"]
[Site "Chess.com"]
[Date "2020.05.05"]
[Round "1"]
[White "abhidabhi"]
[Black "dopolian"]
[Result "1-0"]
[WhiteElo "2778"]
[BlackElo "2403"]
[TimeControl "180+1"]
[EndTime "10:08:27 PDT"]
[Termination "abhidabhi won on time"]

1. Nf3 {[%clk 0:03:00.4]} 1... Nf6 {[%clk 0:03:00.2]} 2. g3 {[%clk 0:03:00.5]}
2... c5 {[%clk 0:02:55.2]} 3. Bg2 {[%clk 0:03:00.9]} 3... Nc6 {[%clk 0:02:54.7]}
4. c4 {[%clk 0:02:57.8]} 4... d5 {[%clk 0:02:54.4]} 5. cxd5 {[%clk 0:02:58.1]}
5... Nxd5 {[%clk 0:02:55.3]} 6. d4 {[%clk 0:02:57.7]} 6... cxd4 {[%clk 0:02:42]}
7. Nxd4 {[%clk 0:02:57.4]} 7... Nxd4 {[%clk 0:02:41.9]} 8. Qxd4 {[%clk 0:02:55]}
8... e6 {[%clk 0:02:42]} 9. O-O {[%clk 0:02:52.9]} 9... Qb6 {[%clk 0:02:32.4]}
10. Qd3 {[%clk 0:02:37.6]} 10... Nb4 {[%clk 0:02:24.4]} 11. Qb3 {[%clk
0:02:36.4]} 11... Bc5 {[%clk 0:02:15.4]} 12. Nc3 {[%clk 0:02:33.5]} 12... Nc6
{[%clk 0:02:05.6]} 13. Na4 {[%clk 0:01:42.1]} 13... Qxb3 {[%clk 0:02:01.4]} 14.
axb3 {[%clk 0:01:43]} 14... Bd4 {[%clk 0:01:20.1]} 15. Rd1 {[%clk 0:01:34.5]}
15... Bf6 {[%clk 0:01:17.2]} 16. Bf4 {[%clk 0:00:46.5]} 16... e5 {[%clk
0:00:59.2]} 17. Be3 {[%clk 0:00:46.5]} 17... O-O {[%clk 0:00:45.5]} 18. Nb6
{[%clk 0:00:45.4]} 18... Rb8 {[%clk 0:00:44.3]} 19. Nd5 {[%clk 0:00:36.4]} 19...
Be6 {[%clk 0:00:32.9]} 20. Bxa7 {[%clk 0:00:27.8]} 20... Nxa7 {[%clk 0:00:23.8]}
21. Rxa7 {[%clk 0:00:27.4]} 21... Rfc8 {[%clk 0:00:16.2]} 22. Nxf6+ {[%clk
0:00:25.7]} 22... gxf6 {[%clk 0:00:16]} 23. Rxb7 {[%clk 0:00:25.6]} 23... Rxb7
{[%clk 0:00:15.7]} 24. Bxb7 {[%clk 0:00:25.8]} 24... Rc2 {[%clk 0:00:11.1]} 25.
Rb1 {[%clk 0:00:12.6]} 25... Bxb3 {[%clk 0:00:10.3]} 26. Bf3 {[%clk 0:00:09.9]}
26... Ba2 {[%clk 0:00:09.7]} 27. Ra1 {[%clk 0:00:09.5]} 27... Rxb2 {[%clk
0:00:10]} 28. h4 {[%clk 0:00:10.4]} 28... Rb1+ {[%clk 0:00:09.4]} 29. Rxb1
{[%clk 0:00:10.9]} 29... Bxb1 {[%clk 0:00:10.3]} 30. e3 {[%clk 0:00:11.2]} 30...
Kg7 {[%clk 0:00:10.5]} 31. Bd5 {[%clk 0:00:11.6]} 31... Bf5 {[%clk 0:00:10]} 32.
Kg2 {[%clk 0:00:11.5]} 32... Bd7 {[%clk 0:00:10.1]} 33. Kf3 {[%clk 0:00:11.1]}
33... f5 {[%clk 0:00:09.9]} 34. Bc4 {[%clk 0:00:10.9]} 34... Kf6 {[%clk
0:00:09.7]} 35. Ke2 {[%clk 0:00:11.3]} 35... h6 {[%clk 0:00:10]} 36. Kd3 {[%clk
0:00:10]} 36... Bc6 {[%clk 0:00:10.4]} 37. Kc3 {[%clk 0:00:10.3]} 37... Be4
{[%clk 0:00:10.6]} 38. Kb4 {[%clk 0:00:10.5]} 38... Bf3 {[%clk 0:00:10.8]} 39.
Kc5 {[%clk 0:00:11]} 39... Bb7 {[%clk 0:00:08.5]} 40. Bd5 {[%clk 0:00:10.3]}
40... Ba6 {[%clk 0:00:08.4]} 41. Kd6 {[%clk 0:00:10.3]} 41... Bd3 {[%clk
0:00:07.8]} 42. Kd7 {[%clk 0:00:10.4]} 42... Bb5+ {[%clk 0:00:08]} 43. Bc6
{[%clk 0:00:10.5]} 43... Bc4 {[%clk 0:00:04.5]} 44. Ke8 {[%clk 0:00:09.3]} 44...
Be6 {[%clk 0:00:04.6]} 45. Kf8 {[%clk 0:00:08.6]} 45... Bc4 {[%clk 0:00:04.4]}
46. Kg8 {[%clk 0:00:08.7]} 46... Kg6 {[%clk 0:00:04.9]} 47. Be8 {[%clk
0:00:08.5]} 47... Be6 {[%clk 0:00:05]} 48. Kf8 {[%clk 0:00:06.5]} 48... Kf6
{[%clk 0:00:05.1]} 49. f4 {[%clk 0:00:05.1]} 49... exf4 {[%clk 0:00:04.7]} 50.
exf4 {[%clk 0:00:04.2]} 50... Bc4 {[%clk 0:00:05]} 51. Kg8 {[%clk 0:00:04.7]}
51... Kg6 {[%clk 0:00:04.7]} 52. Kf8 {[%clk 0:00:03]} 52... Kf6 {[%clk
0:00:03.7]} 53. Bd7 {[%clk 0:00:02.7]} 53... Bd5 {[%clk 0:00:03.5]} 54. Be8
{[%clk 0:00:01.5]} 54... Be6 {[%clk 0:00:03.2]} 55. h5 {[%clk 0:00:01.9]} 55...
Bd5 {[%clk 0:00:02.8]} 56. Kg8 {[%clk 0:00:02.6]} 56... Bc4 {[%clk 0:00:02]} 57.
Kh7 {[%clk 0:00:03.4]} 1-0

[Event "*** Titled Tuesday Blitz"]
[Site "Chess.com"]
[Date "2020.05.05"]
[Round "1"]
[White "Volodar_Murzin"]
[Black "ChelsieMonica"]
[Result "1/2-1/2"]
[WhiteElo "2650"]
[BlackElo "2337"]
[TimeControl "180+1"]
[EndTime "10:08:27 PDT"]
[Termination "Game drawn by repetition"]

1. e4 {[%clk 0:03:00]} 1... e5 {[%clk 0:02:58.2]} 2. Nf3 {[%clk 0:02:59.6]} 2...
Nc6 {[%clk 0:02:57.6]} 3. Bb5 {[%clk 0:02:57.3]} 3... a6 {[%clk 0:02:57.1]} 4.
Ba4 {[%clk 0:02:57.3]} 4... Nf6 {[%clk 0:02:56.5]} 5. O-O {[%clk 0:02:56.4]}
5... b5 {[%clk 0:02:55.8]} 6. Bb3 {[%clk 0:02:56.2]} 6... Be7 {[%clk 0:02:55.9]}
7. d3 {[%clk 0:02:55.4]} 7... O-O {[%clk 0:02:56]} 8. Nc3 {[%clk 0:02:56]} 8...
d6 {[%clk 0:02:55.6]} 9. a3 {[%clk 0:02:55.3]} 9... Bg4 {[%clk 0:02:55.3]} 10.
Be3 {[%clk 0:02:55.6]} 10... Nd4 {[%clk 0:02:54.4]} 11. Bxd4 {[%clk 0:02:55.1]}
11... exd4 {[%clk 0:02:54.6]} 12. Nd5 {[%clk 0:02:55.2]} 12... c6 {[%clk
0:02:54.4]} 13. Nxf6+ {[%clk 0:02:54]} 13... Bxf6 {[%clk 0:02:54.3]} 14. h3
{[%clk 0:02:54.7]} 14... Bh5 {[%clk 0:02:53.9]} 15. g4 {[%clk 0:02:51.3]} 15...
Bg6 {[%clk 0:02:53.7]} 16. Nh2 {[%clk 0:02:45.2]} 16... d5 {[%clk 0:02:46.1]}
17. exd5 {[%clk 0:02:44.7]} 17... c5 {[%clk 0:02:41.7]} 18. f4 {[%clk
0:02:43.2]} 18... h5 {[%clk 0:02:36.8]} 19. g5 {[%clk 0:02:40.8]} 19... Be7
{[%clk 0:02:36.4]} 20. f5 {[%clk 0:02:40.5]} 20... Bh7 {[%clk 0:02:18.2]} 21. h4
{[%clk 0:02:40.1]} 21... c4 {[%clk 0:02:13.6]} 22. dxc4 {[%clk 0:02:36.7]} 22...
bxc4 {[%clk 0:02:14.5]} 23. Bxc4 {[%clk 0:02:36]} 23... Qc7 {[%clk 0:02:14.7]}
24. Qd3 {[%clk 0:02:23.1]} 24... Rab8 {[%clk 0:01:42.4]} 25. g6 {[%clk
0:02:14.6]} 25... Bxh4 {[%clk 0:01:20.1]} 26. gxh7+ {[%clk 0:02:12.9]} 26... Kh8
{[%clk 0:01:20.4]} 27. b3 {[%clk 0:02:11.7]} 27... Bg5 {[%clk 0:01:16.9]} 28.
Qh3 {[%clk 0:02:09.1]} 28... Rbe8 {[%clk 0:01:11.6]} 29. Rae1 {[%clk 0:02:01.8]}
29... Be3+ {[%clk 0:01:07.1]} 30. Kh1 {[%clk 0:02:01.6]} 30... Re4 {[%clk
0:01:05.2]} 31. Bd3 {[%clk 0:01:56.1]} 31... Rf4 {[%clk 0:01:04.6]} 32. Rxf4
{[%clk 0:01:54.7]} 32... Qxf4 {[%clk 0:01:05.5]} 33. Rf1 {[%clk 0:01:53.2]}
33... Qe5 {[%clk 0:01:05.7]} 34. Qxh5 {[%clk 0:01:52.7]} 34... Qxd5+ {[%clk
0:00:56.3]} 35. Qf3 {[%clk 0:01:52.8]} 35... Qd6 {[%clk 0:00:52.6]} 36. Ng4
{[%clk 0:01:47.7]} 36... Re8 {[%clk 0:00:51.9]} 37. a4 {[%clk 0:01:38.7]} 37...
Bg5 {[%clk 0:00:47.7]} 38. Kg2 {[%clk 0:01:23.2]} 38... Qb4 {[%clk 0:00:39.8]}
39. Rf2 {[%clk 0:01:16]} 39... Be3 {[%clk 0:00:33.1]} 40. Re2 {[%clk 0:01:13.2]}
40... Qc5 {[%clk 0:00:32.4]} 41. f6 {[%clk 0:01:02.1]} 41... g6 {[%clk
0:00:31.6]} 42. Kf1 {[%clk 0:00:52.5]} 42... Qg5 {[%clk 0:00:29.1]} 43. Nxe3
{[%clk 0:00:42.4]} 43... dxe3 {[%clk 0:00:30]} 44. Rg2 {[%clk 0:00:41.5]} 44...
Qe5 {[%clk 0:00:30]} 45. Kg1 {[%clk 0:00:31.4]} 45... Qa1+ {[%clk 0:00:27.6]}
46. Kh2 {[%clk 0:00:25.4]} 46... Qe5+ {[%clk 0:00:26.5]} 47. Kh1 {[%clk
0:00:25.3]} 47... Qa1+ {[%clk 0:00:25.7]} 48. Rg1 {[%clk 0:00:24.9]} 48... Qd4
{[%clk 0:00:25.7]} 49. Qg4 {[%clk 0:00:17.2]} 49... Qd5+ {[%clk 0:00:25.8]} 50.
Qg2 {[%clk 0:00:16.8]} 50... Qh5+ {[%clk 0:00:25.8]} 51. Qh2 {[%clk 0:00:16.8]}
51... Qf3+ {[%clk 0:00:26]} 52. Qg2 {[%clk 0:00:17.3]} 52... Qh5+ {[%clk
0:00:26]} 53. Qh2 {[%clk 0:00:17.1]} 53... Qf3+ {[%clk 0:00:26.2]} 54. Rg2
{[%clk 0:00:13.8]} 54... Qxf6 {[%clk 0:00:22]} 55. Qg3 {[%clk 0:00:12.4]} 55...
Qa1+ {[%clk 0:00:21.3]} 56. Kh2 {[%clk 0:00:12.5]} 56... Qg7 {[%clk 0:00:21.1]}
57. Re2 {[%clk 0:00:11.8]} 57... f5 {[%clk 0:00:19.4]} 58. Kg1 {[%clk
0:00:09.7]} 58... Qa1+ {[%clk 0:00:18]} 59. Kg2 {[%clk 0:00:09.5]} 59... Qd4
{[%clk 0:00:17.9]} 60. Kf3 {[%clk 0:00:09]} 60... Qd5+ {[%clk 0:00:14.3]} 61.
Kf4 {[%clk 0:00:09.5]} 61... Qe5+ {[%clk 0:00:13.6]} 62. Kf3 {[%clk 0:00:09.1]}
62... Qd5+ {[%clk 0:00:14]} 63. Kf4 {[%clk 0:00:09.7]} 63... Qe5+ {[%clk
0:00:13.2]} 64. Kf3 {[%clk 0:00:10]} 64... Qd5+ {[%clk 0:00:13.6]} 1/2-1/2